[Event "9th Amsterdam Science Park B 2019"]
[Site "Amsterdam"]
[Date "2019.07.10"]
[Round "5.3"]
[White "Van de Kamp, Rob"]
[Black "Roemersma, Aad"]
[Result "0-1"]
[ECO "A88"]
[WhiteElo "1936"]
[BlackElo "2029"]
[Annotator "NA"]
[PlyCount "108"]
[EventDate "2019.07.06"]
[EventType "swiss"]
[EventCountry "NED"]
[SourceTitle "playchess.com"]
[Source "ChessBase"]
[SourceQuality "1"]
[TimeControl "40/5400+30:1800+30"]

1. d4 {[%emt 0:00:00]} f5 {[%emt 0:06:53]} 2. Nf3 {[%emt 0:02:41]} Nf6 {[%emt 0:00:21]} 3. c4 {[%emt 0:00:19]} g6 {[%emt 0:00:18]} 4. Nc3 {[%emt 0:00:14]} Bg7 {[%emt 0:00:10]} 5. g3 {[%emt 0:00:23]} O-O {[%emt 0:00:41]} 6. Bg2 {[%emt 0:00:12]} d6 {[%emt 0:00:47]} 7. O-O {[%emt 0:03:03]} c6 {[%emt 0:00:45]} 8. Qb3 {[%emt 0:08:07]} Na6 {[%emt 0:06:50]} 9. Rd1 {[%emt 0:05:19]} Qe8 {[%emt 0:03:28]} 10. Bf4 {[%emt 0:07:11]} c5 {[%emt 0:09:23]} 11. d5 {[%emt 0:03:21]} Nc7 {[%emt 0:01:05]} 12. Qc2 {[%emt 0:01:02]} b5 {[%emt 0:03:12]} 13. cxb5 {[%emt 0:09:20]} Nxb5 {[%emt 0:00:28]} 14. Rab1 {[%emt 0:00:57]} Rb8 {[%emt 0:03:46]} 15. Nxb5 {[%emt 0:11:41]} Qxb5 {[%emt 0:00:57]} 16. Nd2 {[%emt 0:00:40]} Ba6 {[%emt 0:05:46]} 17. b3 {[%emt 0:00:48]} Qd7 {[%emt 0:03:32]} 18. Nc4 {[%emt 0:01:36]} Rb4 {[%emt 0:01:07]} 19. Bd2 {[%emt 0:00:48]} Rb7 {[%emt 0:00:56]} 20. Bc3 {[%emt 0:06:03]} Bxc4 {[%emt 0:04:45]} 21. bxc4 {[%emt 0:00:03]} Rfb8 {[%emt 0:00:15]} 22. h3 {[%emt 0:04:32]} Qc7 {[%emt 0:04:53]} 23. a4 {[%emt 0:06:28]} Nh5 {[%emt 0:04:05]} 24. Be1 {[%emt 0:01:49]} Nf6 {[%emt 0:04:16]} 25. f4 {[%emt 0:00:48]} Qd7 {[%emt 0:02:37]} 26. Kh2 {[%emt 0:04:37]} Rxb1 {[%emt 0:01:07]} 27. Rxb1 {[%emt 0:03:49]} Rxb1 {[%emt 0:00:08]} 28. Qxb1 {[%emt 0:00:15]} Qxa4 {[%emt 0:00:10]} 29. Qb7 {[%emt 0:01:45]} Kf7 {[%emt 0:03:55]} 30. e4 {[%emt 0:02:35]} Nxe4 {[%emt 0:03:02]} 31. g4 {[%emt 0:01:29]} Nf6 {[%emt 0:03:14]} 32. Bh4 {[%emt 0:01:01]} Qd7 {[%emt 0:00:47]} 33. Qc6 {[%emt 0:00:43]} Ke8 {[%emt 0:05:52]} 34. Qa8+ {[%emt 0:01:01]} Kf7 {[%emt 0:00:06]} 35. Qc6 {[%emt 0:00:53]} Qe8 {[%emt 0:00:10]} 36. gxf5 {[%emt 0:00:44]} gxf5 {[%emt 0:00:28]} 37. Bxf6 {[%emt 0:01:22]} Bxf6 {[%emt 0:00:37]} 38. Bf3 {[%emt 0:00:39]} Kf8 {[%emt 0:01:02]} 39. Bd1 {[%emt 0:00:07]} Qb8 {[%emt 0:04:07]} 40. Bc2 {[%emt 0:00:29]} Qb2 {[%emt 0:00:22]} 41. Qc8+ {[%emt 0:30:02]} Kf7 {[%emt 0:31:31]} 42. Qxf5 {[%emt 0:00:03]} a5 {[%emt 0:06:01]} 43. Kg3 {[%emt 0:10:09]} Qc3+ {[%emt 0:04:20]} 44. Kg4 {[%emt 0:00:24]} Qxc4 {[%emt 0:02:30]} 45. Qxh7+ {[%emt 0:00:48]} Kf8 {[%emt 0:00:15]} 46. Be4 {[%emt 0:00:00]} Qe2+ {[%emt 0:00:00]} 47. Kf5 {[%emt 0:00:00]} Qa6 {[%emt 0:00:00]} 48. Kg6 {[%emt 0:00:00]} Ke8 {[%emt 0:00:00]} 49. Bf5 {[%emt 0:00:00]} Kd8 {[%emt 0:00:00]} 50. Qg8+ {[%emt 0:00:00]} Kc7 {[%emt 0:00:00]} 51. Qe8 {[%emt 0:00:00]} Qb7 {[%emt 0:00:00]} 52. Qd7+ {[%emt 0:00:00]} Kb6 {[%emt 0:00:00]} 53. Bd3 {[%emt 0:00:00]} Qxd7 {[%emt 0:00:00]} 54. Bf5 Qb7 0-1

[Event "9th Amsterdam Science Park B 2019"]
[Site "Amsterdam"]
[Date "2019.07.10"]
[Round "5.4"]
[White "Aalten, Evert"]
[Black "Emans, Job"]
[Result "1/2-1/2"]
[ECO "A05"]
[WhiteElo "1931"]
[BlackElo "1989"]
[Annotator "NA"]
[PlyCount "45"]
[EventDate "2019.07.06"]
[EventType "swiss"]
[EventCountry "NED"]
[SourceTitle "playchess.com"]
[Source "ChessBase"]
[SourceQuality "1"]
[TimeControl "40/5400+30:1800+30"]

1. Nf3 {[%emt 0:00:00]} Nf6 {[%emt 0:06:21]} 2. c4 {[%emt 0:00:06]} e6 {[%emt 0:00:15]} 3. g3 {[%emt 0:00:11]} b6 {[%emt 0:00:57]} 4. Bg2 {[%emt 0:00:13]} Bb7 {[%emt 0:00:07]} 5. O-O {[%emt 0:00:10]} Be7 {[%emt 0:00:46]} 6. Nc3 {[%emt 0:00:38]} O-O {[%emt 0:01:09]} 7. d4 {[%emt 0:00:26]} Ne4 {[%emt 0:04:28]} 8. Nxe4 {[%emt 0:01:01]} Bxe4 {[%emt 0:00:08]} 9. Ne1 {[%emt 0:00:10]} Bxg2 {[%emt 0:04:53]} 10. Nxg2 {[%emt 0:00:20]} d5 {[%emt 0:01:19]} 11. Qa4 {[%emt 0:01:03]} Nd7 {[%emt 0:02:08]} 12. cxd5 {[%emt 0:00:41]} exd5 {[%emt 0:00:05]} 13. Qc6 {[%emt 0:02:30]} Nf6 {[%emt 0:20:23]} 14. Bf4 {[%emt 0:06:01]} Rc8 {[%emt 0:00:30]} 15. Rac1 {[%emt 0:00:45]} Ne8 {[%emt 0:01:35]} 16. Ne1 {[%emt 0:14:13]} g5 {[%emt 0:14:23]} 17. Be3 {[%emt 0:00:22]} f5 {[%emt 0:01:25]} 18. Nd3 {[%emt 0:03:54]} Rf6 {[%emt 0:06:06]} 19. Qa4 {[%emt 0:01:25]} Rd6 {[%emt 0:00:26]} 20. Rc6 {[%emt 0:02:29]} Bf6 {[%emt 0:03:19]} 21. Rfc1 {[%emt 0:03:06]} Kg7 {[%emt 0:01:15]} 22. a3 {[%emt 0:03:39]} a5 {[%emt 0:03:23]} 23. f4 {[%emt 0:18:22]} 1/2-1/2

[Event "9th Amsterdam Science Park B 2019"]
[Site "Amsterdam"]
[Date "2019.07.10"]
[Round "5.5"]
[White "De Winter, Arthur"]
[Black "Breedveld, Andre"]
[Result "0-1"]
[ECO "C09"]
[WhiteElo "1859"]
[BlackElo "1947"]
[Annotator "NA"]
[PlyCount "106"]
[EventDate "2019.07.06"]
[EventType "swiss"]
[EventCountry "NED"]
[SourceTitle "playchess.com"]
[Source "ChessBase"]
[SourceQuality "1"]
[TimeControl "40/5400+30:1800+30"]

1. e4 {[%emt 0:00:00]} e6 {[%emt 0:00:00]} 2. d4 {[%emt 0:00:00]} d5 {[%emt 0:00:00]} 3. Nd2 {[%emt 0:00:00]} c5 {[%emt 0:00:08]} 4. exd5 {[%emt 0:01:08]} exd5 {[%emt 0:00:10]} 5. Ngf3 {[%emt 0:00:33]} Nc6 {[%emt 0:00:32]} 6. dxc5 {[%emt 0:03:43]} Bxc5 {[%emt 0:01:23]} 7. Be2 {[%emt 0:00:41]} Nge7 {[%emt 0:04:46]} 8. Nb3 {[%emt 0:00:43]} Bd6 {[%emt 0:00:12]} 9. O-O {[%emt 0:00:10]} O-O {[%emt 0:01:05]} 10. Nbd4 {[%emt 0:01:38]} Bg4 {[%emt 0:08:26]} 11. Be3 {[%emt 0:08:30]} a6 {[%emt 0:06:29]} 12. c3 {[%emt 0:08:37]} Qc7 {[%emt 0:06:42]} 13. h3 {[%emt 0:02:43]} Bh5 {[%emt 0:00:13]} 14. Qd2 {[%emt 0:16:03]} Na5 {[%emt 0:02:30]} 15. Rfe1 {[%emt 0:10:47]} Rfe8 {[%emt 0:04:46]} 16. Bd3 {[%emt 0:08:38]} Nc4 {[%emt 0:11:22]} 17. Bxc4 {[%emt 0:00:08]} dxc4 {[%emt 0:00:20]} 18. Nh4 {[%emt 0:09:54]} Rad8 {[%emt 0:08:32]} 19. Qc2 {[%emt 0:03:41]} Bg6 {[%emt 0:10:56]} 20. Nxg6 {[%emt 0:00:10]} hxg6 {[%emt 0:00:28]} 21. Rad1 {[%emt 0:00:24]} Nd5 {[%emt 0:03:33]} 22. Bg5 {[%emt 0:00:59]} Rc8 {[%emt 0:02:11]} 23. Qa4 {[%emt 0:04:32]} Rf8 {[%emt 0:02:48]} 24. Qc2 {[%emt 0:01:19]} Qa5 {[%emt 0:05:43]} 25. Bh4 {[%emt 0:03:04]} Rfe8 {[%emt 0:03:02]} 26. Nf3 {[%emt 0:05:59]} Bb8 {[%emt 0:01:08]} 27. a3 {[%emt 0:00:34]} Nf4 {[%emt 0:01:59]} 28. Bg3 {[%emt 0:02:12]} Nd3 {[%emt 0:03:16]} 29. Rxe8+ {[%emt 0:00:10]} Rxe8 {[%emt 0:00:06]} 30. Bxb8 {[%emt 0:00:06]} Rxb8 {[%emt 0:00:09]} 31. Nd2 {[%emt 0:00:45]} b5 {[%emt 0:01:17]} 32. b3 {[%emt 0:02:11]} Qb6 {[%emt 0:02:28]} 33. Ne4 {[%emt 0:01:57]} Qe6 {[%emt 0:01:27]} 34. Ng3 {[%emt 0:01:23]} Re8 {[%emt 0:01:49]} 35. bxc4 {[%emt 0:00:52]} bxc4 {[%emt 0:00:06]} 36. Kh2 {[%emt 0:00:07]} Qc6 {[%emt 0:01:32]} 37. f3 {[%emt 0:01:29]} Qc7 {[%emt 0:03:02]} 38. Qa4 {[%emt 0:01:00]} Re2 {[%emt 0:00:39]} 39. Qxa6 {[%emt 0:01:40]} Ne1 {[%emt 0:02:50]} 40. Rxe1 {[%emt 0:00:50]} Rxe1 {[%emt 0:00:10]} 41. Qa8+ {[%emt 0:30:20]} Kh7 {[%emt 0:30:19]} 42. Qd5 {[%emt 0:00:00]} Re5 {[%emt 0:00:00]} 43. Qd4 {[%emt 0:00:00]} Ra5 {[%emt 0:00:00]} 44. Qh4+ {[%emt 0:00:00]} Kg8 {[%emt 0:00:00]} 45. Qe4 {[%emt 0:00:00]} Rxa3 {[%emt 0:00:00]} 46. h4 {[%emt 0:00:00]} Rxc3 {[%emt 0:00:00]} 47. f4 {[%emt 0:00:00]} Ra3 {[%emt 0:00:00]} 48. h5 {[%emt 0:00:00]} Ra6 {[%emt 0:00:00]} 49. Qe8+ {[%emt 0:00:00]} Kh7 {[%emt 0:00:00]} 50. Qb5 {[%emt 0:00:00]} Rf6 {[%emt 0:00:00]} 51. hxg6+ {[%emt 0:00:00]} fxg6 {[%emt 0:00:00]} 52. f5 {[%emt 0:00:00]} Rxf5 {[%emt 0:00:00]} 53. Qxc4 {[%emt 0:00:00]} Qxc4 {[%emt 0:00:00]} 0-1

[Event "9th Amsterdam Science Park B 2019"]
[Site "Amsterdam"]
[Date "2019.07.10"]
[Round "5.6"]
[White "De Ruiter, Tom"]
[Black "Van den Bergh, Ben"]
[Result "1-0"]
[ECO "C60"]
[WhiteElo "2010"]
[BlackElo "1980"]
[Annotator "NA"]
[PlyCount "31"]
[EventDate "2019.07.06"]
[EventType "swiss"]
[EventCountry "NED"]
[SourceTitle "playchess.com"]
[Source "ChessBase"]
[SourceQuality "1"]
[TimeControl "40/5400+30:1800+30"]

1. e4 {[%emt 0:00:00]} e5 {[%emt 0:00:00]} 2. Nf3 {[%emt 0:00:00]} Nc6 {[%emt 0:00:00]} 3. Bb5 {[%emt 0:00:00]} Nge7 {[%emt 0:00:00]} 4. d3 {[%emt 0:02:13]} Ng6 {[%emt 0:02:32]} 5. h4 {[%emt 0:01:40]} Be7 {[%emt 0:00:37]} 6. h5 {[%emt 0:00:39]} Nh4 {[%emt 0:01:35]} 7. Nxh4 {[%emt 0:05:04]} Bxh4 {[%emt 0:00:25]} 8. g3 {[%emt 0:08:13]} Bg5 {[%emt 0:01:56]} 9. Bxc6 {[%emt 0:01:06]} dxc6 {[%emt 0:02:35]} 10. Bxg5 {[%emt 0:00:28]} Qxg5 {[%emt 0:00:06]} 11. Qd2 {[%emt 0:00:14]} h6 {[%emt 0:01:43]} 12. Na3 {[%emt 0:06:13]} Bg4 {[%emt 0:07:28]} 13. Nc4 {[%emt 0:01:32]} Bf3 {[%emt 0:01:32]} 14. Rh2 {[%emt 0:02:04]} Bxh5 {[%emt 0:09:33]} 15. Qxg5 {[%emt 0:00:38]} hxg5 {[%emt 0:00:12]} 16. g4 {[%emt 0:00:06]} 1-0

[Event "9th Amsterdam Science Park B 2019"]
[Site "Amsterdam"]
[Date "2019.07.10"]
[Round "5.7"]
[White "Cohn, Samuel"]
[Black "Adavatkar, Rugved"]
[Result "1-0"]
[ECO "D52"]
[WhiteElo "1679"]
[BlackElo "1678"]
[Annotator "NA"]
[PlyCount "75"]
[EventDate "2019.07.06"]
[EventType "swiss"]
[EventCountry "NED"]
[SourceTitle "playchess.com"]
[Source "ChessBase"]
[SourceQuality "1"]
[TimeControl "40/5400+30:1800+30"]

1. d4 {[%emt 0:00:00]} d5 {[%emt 0:00:00]} 2. c4 {[%emt 0:00:00]} c6 {[%emt 0:00:00]} 3. Nc3 {[%emt 0:00:00]} Nf6 {[%emt 0:00:00]} 4. Nf3 {[%emt 0:00:12]} e6 {[%emt 0:00:14]} 5. Bg5 {[%emt 0:00:32]} Nbd7 {[%emt 0:00:06]} 6. e3 {[%emt 0:00:18]} Be7 {[%emt 0:00:07]} 7. Bd3 {[%emt 0:01:16]} dxc4 {[%emt 0:00:25]} 8. Bxc4 {[%emt 0:00:20]} b5 {[%emt 0:00:08]} 9. Bb3 {[%emt 0:01:12]} a5 {[%emt 0:00:32]} 10. O-O {[%emt 0:01:09]} O-O {[%emt 0:00:21]} 11. Rc1 {[%emt 0:00:47]} Ba6 {[%emt 0:02:40]} 12. Re1 {[%emt 0:00:46]} Rc8 {[%emt 0:01:27]} 13. Bc2 {[%emt 0:04:17]} Nb6 {[%emt 0:01:27]} 14. Qd3 {[%emt 0:09:54]} g6 {[%emt 0:00:51]} 15. a4 {[%emt 0:00:50]} Nc4 {[%emt 0:01:17]} 16. b3 {[%emt 0:02:12]} Nb2 {[%emt 0:05:17]} 17. Qd2 {[%emt 0:06:26]} bxa4 {[%emt 0:00:46]} 18. bxa4 {[%emt 0:00:32]} Kg7 {[%emt 0:01:10]} 19. Bb1 {[%emt 0:07:42]} Qb6 {[%emt 0:03:03]} 20. e4 {[%emt 0:00:46]} Rfd8 {[%emt 0:03:12]} 21. e5 {[%emt 0:14:33]} Ng8 {[%emt 0:00:14]} 22. Bxe7 {[%emt 0:13:42]} Nxe7 {[%emt 0:00:55]} 23. Ne4 {[%emt 0:02:17]} Nd5 {[%emt 0:10:05]} 24. Nc5 {[%emt 0:00:39]} Rb8 {[%emt 0:02:36]} 25. Ba2 {[%emt 0:02:14]} Bc8 {[%emt 0:01:59]} 26. Bb3 {[%emt 0:05:10]} Nxa4 27. Bxa4 {[%emt 0:00:34]} Nb4 {[%emt 0:04:13]} 28. Ng5 {[%emt 0:02:10]} Qa7 {[%emt 0:00:48]} 29. Qf4 {[%emt 0:04:25]} Nd5 {[%emt 0:00:51]} 30. Qh4 {[%emt 0:00:25]} Rh8 {[%emt 0:00:05]} 31. Bxc6 {[%emt 0:01:28]} h6 {[%emt 0:00:51]} 32. Nge4 {[%emt 0:01:34]} g5 {[%emt 0:00:44]} 33. Qg4 {[%emt 0:02:16]} Rb4 {[%emt 0:00:34]} 34. Nd6 {[%emt 0:01:11]} Ba6 {[%emt 0:01:12]} 35. h4 {[%emt 0:03:00]} Ne7 {[%emt 0:01:01]} 36. hxg5 {[%emt 0:03:25]} Nxc6 {[%emt 0:00:11]} 37. gxh6+ {[%emt 0:00:09]} Kxh6 {[%emt 0:00:07]} 38. Re3 1-0

[Event "9th Amsterdam Science Park B 2019"]
[Site "Amsterdam"]
[Date "2019.07.10"]
[Round "5.8"]
[White "Honkoop, Mark"]
[Black "Kerkhoff, Chris"]
[Result "1-0"]
[ECO "B00"]
[WhiteElo "1670"]
[BlackElo "1628"]
[Annotator "NA"]
[PlyCount "89"]
[EventDate "2019.07.06"]
[EventType "swiss"]
[EventCountry "NED"]
[SourceTitle "playchess.com"]
[Source "ChessBase"]
[SourceQuality "1"]
[TimeControl "40/5400+30:1800+30"]

1. e4 {[%emt 0:00:00]} Nc6 {[%emt 0:00:00]} 2. Nf3 {[%emt 0:00:20]} d6 {[%emt 0:00:00]} 3. d4 {[%emt 0:00:56]} Nf6 {[%emt 0:00:12]} 4. Nc3 {[%emt 0:06:20]} g6 {[%emt 0:00:17]} 5. Bb5 {[%emt 0:02:42]} a6 6. Bd3 {[%emt 0:01:44]} Bg7 {[%emt 0:03:03]} 7. h3 {[%emt 0:03:54]} O-O {[%emt 0:00:55]} 8. O-O {[%emt 0:01:13]} e5 {[%emt 0:02:26]} 9. dxe5 {[%emt 0:09:04]} Nxe5 {[%emt 0:00:37]} 10. Nxe5 {[%emt 0:01:48]} dxe5 {[%emt 0:00:16]} 11. Qf3 {[%emt 0:05:31]} Be6 {[%emt 0:09:38]} 12. Bg5 {[%emt 0:05:15]} h6 {[%emt 0:01:26]} 13. Be3 {[%emt 0:00:28]} Qe7 {[%emt 0:04:14]} 14. Rfd1 {[%emt 0:07:31]} Nd7 {[%emt 0:07:07]} 15. Qe2 {[%emt 0:04:06]} Nc5 {[%emt 0:06:17]} 16. Bc4 {[%emt 0:02:19]} Nd7 {[%emt 0:06:54]} 17. Bxe6 {[%emt 0:07:34]} fxe6 {[%emt 0:01:09]} 18. Qc4 {[%emt 0:03:57]} Nb6 {[%emt 0:12:13]} 19. Qb3 {[%emt 0:04:14]} Rf6 {[%emt 0:07:11]} 20. Na4 {[%emt 0:04:30]} Nxa4 {[%emt 0:01:26]} 21. Qxa4 {[%emt 0:00:07]} b5 {[%emt 0:05:02]} 22. Qa5 {[%emt 0:03:08]} Bf8 {[%emt 0:06:25]} 23. Rd3 {[%emt 0:04:36]} Qf7 {[%emt 0:03:55]} 24. Rad1 {[%emt 0:05:03]} Bd6 {[%emt 0:00:12]} 25. a4 {[%emt 0:02:50]} b4 {[%emt 0:07:52]} 26. c4 {[%emt 0:04:31]} bxc3 {[%emt 0:01:00]} 27. Qxc3 {[%emt 0:01:48]} Qe8 {[%emt 0:05:54]} 28. b3 {[%emt 0:04:06]} g5 {[%emt 0:01:36]} 29. Rxd6 {[%emt 0:02:38]} cxd6 {[%emt 0:00:16]} 30. Rxd6 {[%emt 0:00:04]} Rd8 {[%emt 0:05:23]} 31. Qxe5 {[%emt 0:00:21]} Rxd6 {[%emt 0:00:26]} 32. Qxd6 {[%emt 0:00:11]} Qc8 {[%emt 0:00:40]} 33. Qe5 {[%emt 0:01:17]} Rf7 {[%emt 0:00:55]} 34. Bd4 {[%emt 0:00:53]} Qc1+ {[%emt 0:00:14]} 35. Kh2 {[%emt 0:00:03]} Qf4+ {[%emt 0:00:11]} 36. Qxf4 {[%emt 0:00:42]} Rxf4 {[%emt 0:00:22]} 37. f3 {[%emt 0:00:16]} h5 {[%emt 0:01:02]} 38. b4 {[%emt 0:00:33]} Rf7 {[%emt 0:00:25]} 39. b5 {[%emt 0:00:43]} axb5 {[%emt 0:00:13]} 40. axb5 {[%emt 0:00:04]} Kh7 {[%emt 0:00:50]} 41. b6 {[%emt 0:30:50]} Kg6 {[%emt 0:09:00]} 42. h4 {[%emt 0:00:00]} Rd7 {[%emt 0:06:10]} 43. Be5 {[%emt 0:00:00]} Rb7 {[%emt 0:06:33]} 44. Bc7 {[%emt 0:00:00]} Kf6 {[%emt 0:02:54]} 45. Bd8+ {[%emt 0:00:00]} 1-0

[Event "9th Amsterdam Science Park B 2019"]
[Site "Amsterdam"]
[Date "2019.07.10"]
[Round "5.9"]
[White "Boons, Joris"]
[Black "Van Duijl, Henri"]
[Result "1-0"]
[ECO "B30"]
[WhiteElo "1512"]
[BlackElo "1495"]
[Annotator "NA"]
[PlyCount "49"]
[EventDate "2019.07.06"]
[EventType "swiss"]
[EventCountry "NED"]
[SourceTitle "playchess.com"]
[Source "ChessBase"]
[SourceQuality "1"]
[TimeControl "40/5400+30:1800+30"]

1. e4 {[%emt 0:00:00]} c5 {[%emt 0:00:00]} 2. Nf3 {[%emt 0:00:07]} Nc6 {[%emt 0:00:00]} 3. Bb5 {[%emt 0:04:17]} Nd4 {[%emt 0:03:24]} 4. Nxd4 {[%emt 0:00:35]} cxd4 {[%emt 0:00:08]} 5. c3 {[%emt 0:00:17]} a6 {[%emt 0:02:25]} 6. Ba4 {[%emt 0:00:50]} dxc3 {[%emt 0:07:17]} 7. Nxc3 {[%emt 0:02:38]} e6 {[%emt 0:00:29]} 8. d4 {[%emt 0:01:03]} b5 {[%emt 0:01:30]} 9. Bc2 {[%emt 0:00:58]} Bb7 {[%emt 0:00:23]} 10. O-O {[%emt 0:02:36]} d5 {[%emt 0:06:25]} 11. e5 {[%emt 0:01:06]} Be7 {[%emt 0:08:09]} 12. Bd3 {[%emt 0:02:22]} h5 {[%emt 0:03:43]} 13. Bd2 {[%emt 0:02:32]} Rc8 {[%emt 0:06:17]} 14. h3 {[%emt 0:01:24]} Bg5 {[%emt 0:03:04]} 15. f4 {[%emt 0:03:20]} Be7 {[%emt 0:07:24]} 16. f5 {[%emt 0:01:47]} Qd7 {[%emt 0:02:43]} 17. Qf3 {[%emt 0:00:29]} Kd8 {[%emt 0:04:56]} 18. Qg3 {[%emt 0:00:48]} f6 {[%emt 0:11:40]} 19. Nxb5 {[%emt 0:01:31]} axb5 {[%emt 0:00:51]} 20. Ba5+ {[%emt 0:01:06]} Ke8 {[%emt 0:00:55]} 21. Qxg7 {[%emt 0:01:51]} Bc5 {[%emt 0:04:33]} 22. Qxh8 {[%emt 0:02:31]} Bxd4+ {[%emt 0:00:33]} 23. Kh1 {[%emt 0:00:20]} Kf8 {[%emt 0:03:42]} 24. fxe6 {[%emt 0:00:28]} Qe7 25. Rxf6+ 1-0

[Event "9th Amsterdam Science Park B 2019"]
[Site "Amsterdam"]
[Date "2019.07.10"]
[Round "5.10"]
[White "Pillai, Abhishek"]
[Black "Hospes, Peter"]
[Result "0-1"]
[ECO "B00"]
[WhiteElo "1207"]
[BlackElo "1474"]
[Annotator "NA"]
[PlyCount "82"]
[EventDate "2019.07.06"]
[EventType "swiss"]
[EventCountry "NED"]
[SourceTitle "playchess.com"]
[Source "ChessBase"]
[SourceQuality "1"]
[TimeControl "40/5400+30:1800+30"]

1. e4 {[%emt 0:00:00]} d6 {[%emt 0:00:00]} 2. Bc4 {[%emt 0:02:09]} Nf6 {[%emt 0:01:00]} 3. d3 {[%emt 0:00:39]} Nbd7 {[%emt 0:01:04]} 4. Nf3 {[%emt 0:00:48]} h6 {[%emt 0:01:52]} 5. Nc3 {[%emt 0:01:23]} e5 {[%emt 0:01:25]} 6. Be3 {[%emt 0:00:30]} Be7 {[%emt 0:03:12]} 7. Qd2 {[%emt 0:00:29]} c6 {[%emt 0:02:31]} 8. Bb3 {[%emt 0:04:12]} Ng4 {[%emt 0:02:11]} 9. O-O-O {[%emt 0:01:51]} Nxe3 {[%emt 0:01:55]} 10. fxe3 {[%emt 0:00:19]} Nc5 {[%emt 0:01:44]} 11. Kb1 {[%emt 0:02:01]} a5 {[%emt 0:09:54]} 12. a4 {[%emt 0:02:14]} Nxb3 {[%emt 0:02:24]} 13. cxb3 {[%emt 0:00:32]} Qb6 {[%emt 0:03:18]} 14. Ka2 {[%emt 0:02:03]} Be6 {[%emt 0:01:37]} 15. Qc2 {[%emt 0:02:39]} Qb4 {[%emt 0:16:00]} 16. d4 {[%emt 0:04:57]} Bg4 {[%emt 0:07:59]} 17. h3 {[%emt 0:02:37]} Bh5 {[%emt 0:11:52]} 18. g4 {[%emt 0:03:03]} Bg6 {[%emt 0:00:33]} 19. dxe5 {[%emt 0:00:33]} d5 {[%emt 0:05:20]} 20. Rd4 {[%emt 0:03:17]} Qb6 {[%emt 0:01:49]} 21. Nh4 {[%emt 0:09:30]} Bxh4 {[%emt 0:01:15]} 22. Qg2 {[%emt 0:03:04]} dxe4 {[%emt 0:01:55]} 23. Nxe4 {[%emt 0:01:06]} Bxe4 {[%emt 0:04:11]} 24. Qxe4 {[%emt 0:01:30]} O-O {[%emt 0:01:26]} 25. e6 {[%emt 0:00:42]} fxe6 {[%emt 0:06:41]} 26. Qxe6+ {[%emt 0:00:32]} Kh8 {[%emt 0:00:48]} 27. Rd7 {[%emt 0:02:06]} Bf6 {[%emt 0:03:10]} 28. e4 {[%emt 0:02:26]} Rae8 {[%emt 0:00:32]} 29. Qd6 {[%emt 0:04:23]} Qf2 {[%emt 0:00:50]} 30. Rb1 {[%emt 0:02:56]} Be5 {[%emt 0:00:19]} 31. Qg6 {[%emt 0:01:37]} Qf6 {[%emt 0:00:22]} 32. Qf5 {[%emt 0:01:54]} g6 {[%emt 0:01:15]} 33. Qxf6+ {[%emt 0:01:25]} Bxf6 {[%emt 0:01:27]} 34. Rxb7 {[%emt 0:01:17]} Rxe4 {[%emt 0:00:29]} 35. Rf1 {[%emt 0:03:22]} Re2 {[%emt 0:00:24]} 36. Rb1 {[%emt 0:05:15]} Rd8 {[%emt 0:00:20]} 37. b4 {[%emt 0:01:38]} Rd4 {[%emt 0:00:14]} 38. Rf7 {[%emt 0:04:12]} Bg7 {[%emt 0:00:36]} 39. Ka3 {[%emt 0:01:15]} axb4+ {[%emt 0:01:35]} 40. Kb3 {[%emt 0:04:01]} Re3+ {[%emt 0:01:11]} 41. Kc2 {[%emt 0:31:27]} b3+ {[%emt 0:09:13]} 0-1

[Event "9th Amsterdam Science Park B 2019"]
[Site "Amsterdam"]
[Date "2019.07.11"]
[Round "6.1"]
[White "Dambrink, Wouter"]
[Black "Breedveld, Andre"]
[Result "1/2-1/2"]
[ECO "A40"]
[WhiteElo "1931"]
[BlackElo "1947"]
[Annotator "NA"]
[PlyCount "85"]
[EventDate "2019.07.06"]
[EventType "swiss"]
[EventCountry "NED"]
[SourceTitle "playchess.com"]
[Source "ChessBase"]
[SourceQuality "1"]
[TimeControl "40/5400+30:1800+30"]

1. d4 {[%emt 0:04:31]} e6 {[%emt 0:00:00]} 2. Nf3 {[%emt 0:00:31]} c5 {[%emt 0:02:36]} 3. g3 {[%emt 0:02:05]} Nf6 {[%emt 0:05:18]} 4. Bg2 {[%emt 0:00:38]} a6 {[%emt 0:00:08]} 5. c4 {[%emt 0:02:41]} cxd4 {[%emt 0:03:21]} 6. Nxd4 {[%emt 0:00:07]} Qc7 {[%emt 0:00:10]} 7. Qa4 {[%emt 0:10:25]} Nc6 {[%emt 0:08:52]} 8. Nb5 {[%emt 0:08:27]} Qb8 {[%emt 0:23:46]} 9. N5c3 {[%emt 0:01:25]} Bc5 {[%emt 0:01:01]} 10. Bg5 {[%emt 0:06:19]} h6 {[%emt 0:05:07]} 11. Bxf6 {[%emt 0:07:26]} gxf6 {[%emt 0:00:28]} 12. Ne4 {[%emt 0:05:11]} Bd4 {[%emt 0:01:56]} 13. Qa3 {[%emt 0:01:09]} Be5 {[%emt 0:06:14]} 14. c5 {[%emt 0:13:15]} f5 {[%emt 0:01:50]} 15. Nd6+ {[%emt 0:02:32]} Bxd6 {[%emt 0:00:16]} 16. cxd6 {[%emt 0:00:04]} Rg8 {[%emt 0:08:08]} 17. O-O {[%emt 0:05:07]} Ne5 {[%emt 0:10:18]} 18. Rd1 {[%emt 0:03:21]} f6 {[%emt 0:00:48]} 19. Nd2 {[%emt 0:03:35]} a5 {[%emt 0:00:48]} 20. Nf3 {[%emt 0:05:11]} Ra6 {[%emt 0:04:11]} 21. Nxe5 {[%emt 0:02:41]} fxe5 {[%emt 0:00:07]} 22. Qc5 {[%emt 0:03:00]} e4 {[%emt 0:01:28]} 23. Rac1 {[%emt 0:03:36]} Kf7 {[%emt 0:00:08]} 24. Qe5 {[%emt 0:03:17]} Rc6 {[%emt 0:05:36]} 25. e3 {[%emt 0:02:30]} Kg6 {[%emt 0:04:52]} 26. g4 {[%emt 0:01:19]} Rf8 {[%emt 0:01:45]} 27. h4 {[%emt 0:00:47]} h5 {[%emt 0:01:12]} 28. gxh5+ {[%emt 0:01:13]} Kh7 {[%emt 0:00:44]} 29. Kh2 {[%emt 0:01:18]} Rg8 {[%emt 0:01:35]} 30. Bxe4 {[%emt 0:00:41]} fxe4 {[%emt 0:00:36]} 31. Qxe4+ {[%emt 0:00:06]} Kh8 {[%emt 0:00:17]} 32. Qe5+ {[%emt 0:00:10]} Kh7 {[%emt 0:00:12]} 33. Rxc6 {[%emt 0:00:42]} bxc6 {[%emt 0:00:07]} 34. Qe4+ {[%emt 0:00:50]} Kh8 {[%emt 0:00:28]} 35. Qe5+ {[%emt 0:00:27]} Kh7 {[%emt 0:00:18]} 36. Qe4+ {[%emt 0:00:32]} Kh8 {[%emt 0:00:11]} 37. Qf4 {[%emt 0:00:27]} Kh7 {[%emt 0:00:58]} 38. Qf7+ {[%emt 0:00:36]} Rg7 {[%emt 0:00:35]} 39. Qf8 {[%emt 0:00:22]} Qxb2 {[%emt 0:00:22]} 40. h6 {[%emt 0:00:47]} Rg8 {[%emt 0:02:01]} 41. Qf7+ {[%emt 0:03:54]} Kh8 {[%emt 0:04:03]} 42. Rd4 {[%emt 0:02:11]} Qa1 {[%emt 0:08:00]} 43. Qf6+ {[%emt 0:02:59]} 1/2-1/2